bitfinex/quotes_ETHUSD_20240917
["timestamp","ask_amount","ask_price","bid_price","bid_amount"]
[1726596772500,9.39811587,2374.8,2374.7,1.2]
[1726596772770,11.15692056,2374.8,2374.7,1.2]
[1726596772972,9.39811587,2374.8,2374.7,1.26394453]
[1726596773130,9.39811587,2374.8,2374.7,1.2]
[1726596773328,11.15692056,2374.8,2374.7,1.26394453]
[1726596773532,9.39811587,2374.8,2374.7,1.26394453]
[1726596773972,6.41038188,2374.8,2374.7,1.26394453]
[1726596774172,4.65157719,2374.8,2374.7,1.26394453]
[1726596774333,4.65157719,2374.8,2374.7,1.2]
[1726596775233,4.65157719,2374.8,2374.7,1.25755008]
[1726596775574,10.62126188,2374.8,2374.7,1.25755008]
[1726596775750,12.50009825,2374.8,2374.7,1.25755008]
[1726596776151,12.50009825,2374.8,2374.7,1.2]
[1726596776464,12.93897072,2374.8,2374.7,1.2]
[1726596779071,12.94143231,2374.8,2374.7,1.2]
[1726596780275,12.94143231,2374.8,2374.7,1.25761336]
[1726596780500,10.74129356,2374.8,2374.7,1.2]
[1726596780979,10.74129356,2374.8,2374.7,1.26401485]
[1726596781344,24.06776485,2374.8,2374.7,1.26401485]
[1726596781545,24.06776485,2374.8,2374.7,1.2]
[1726596781546,24.42759835,2374.8,2374.7,1.2]
[1726596781855,16.22159356,2374.8,2374.7,1.2]
[1726596782060,19.30297014,2374.8,2374.7,1.2]
[1726596782382,23.29809493,2374.8,2374.7,1.2]
[1726596782557,23.29760921,2374.8,2374.7,1.2]
[1726596782933,4.21159,2374.4,2374.1,2.3151]
[1726596783237,1.32003703,2374.3,2374.1,2.3151]
[1726596783637,1.76069394,2374.3,2374.1,2.3151]
[1726596784467,1.76069394,2374.3,2373.9,2.3613]
[1726596784775,4.21202,2374.2,2373.9,2.4717013]
[1726596785391,8.42458,2374.0,2373.9,0.1104013]
[1726596785560,4.21229,2374.0,2373.9,0.1104013]
[1726596785754,4.21207,2374.2,2373.6,4.21299]
[1726596786078,4.21207,2374.2,2373.7,3.082099]
[1726596786284,4.21207,2374.2,2373.8,0.06977152]
[1726596786985,4.21221,2374.1,2373.8,0.06977152]
[1726596788166,4.21235,2374.0,2373.8,0.06977152]
[1726596788467,4.21247,2373.9,2373.8,0.06977152]
[1726596788693,4.21235,2374.0,2373.8,0.06977152]
[1726596790163,4.21219,2374.1,2373.8,0.06977152]
[1726596790363,4.21231,2374.0,2373.8,0.06977152]
[1726596792156,4.21219,2374.1,2373.8,0.06977152]
[1726596792366,4.2124,2374.0,2373.8,0.06977152]
[1726596793869,3.7124,2374.0,2373.8,0.06977152]
[1726596794291,3.2124,2374.0,2373.8,0.06977152]
[1726596794995,4.21247,2373.9,2373.8,0.06977152]
[1726596795309,4.21247,2373.9,2373.5,2.4027]
[1726596795509,4.21247,2373.9,2373.8,0.06986503]
[1726596795796,4.21293,2373.7,2373.5,2.4027]
[1726596796096,4.21293,2373.7,2373.4,0.0397786]
[1726596796599,4.21268,2373.8,2373.4,4.2531286]
[1726596796755,6.32752479,2374.0,2373.4,0.0397786]
[1726596796959,8.42632,2373.6,2373.4,0.0397786]
[1726596797281,10.53992479,2374.0,2373.4,0.0397786]
[1726596797282,4.21318,2373.5,2373.4,0.0397786]
[1726596797696,8.42636,2373.5,2373.4,0.0397786]
[1726596797899,9.89852848,2373.5,2373.4,0.0397786]
[1726596798408,14.11170848,2373.5,2373.4,0.0397786]
[1726596798742,16.41190848,2373.5,2373.4,0.0397786]
[1726596799000,17.29374105,2373.5,2373.4,0.0397786]
[1726596801503,11.16728975,2373.5,2373.4,0.0397786]
[1726596801703,11.16728975,2373.5,2373.4,0.10317717]
[1726596802217,0.44072975,2373.5,2373.4,0.10317717]
[1726596802518,0.44072975,2373.5,2373.4,2.52177717]
[1726596803312,0.44072975,2373.5,2373.4,0.10317717]
[1726596803518,8.86708975,2373.5,2373.4,0.10317717]
[1726596803687,8.86708975,2373.5,2373.4,0.0397786]
[1726596804012,8.86708975,2373.5,2373.4,0.10317717]
[1726596804191,8.86708975,2373.5,2373.4,0.0397786]
[1726596804393,8.86708975,2373.5,2373.4,0.10317717]
[1726596807141,4.65390975,2373.5,2373.4,0.10317717]
[1726596813416,11.31578975,2373.5,2373.4,0.0397786]
[1726596813955,12.86865173,2373.5,2373.4,0.0397786]
[1726596814159,13.30973449,2373.5,2373.4,0.0397786]
[1726596815417,17.52291449,2373.5,2373.4,0.0397786]
[1726596815636,25.28609449,2373.5,2373.4,0.0397786]
[1726596815823,26.60074653,2373.5,2373.4,0.0397786]
[1726596816027,27.60964047,2373.5,2373.4,0.0397786]
[1726596817023,12.64329,2372.8,2372.7,0.0397786]
[1726596817355,27.36652139,2372.8,2372.7,0.0397786]
[1726596817557,26.79584479,2372.8,2372.7,0.0397786]
[1726596817765,27.23653979,2372.8,2372.7,0.0397786]
[1726596818061,15.12951,2372.1,2372.0,0.0397786]
[1726596818370,22.12463479,2372.1,2372.0,0.0397786]
[1726596818520,17.90896479,2372.1,2372.0,0.0397786]
[1726596818720,7.21567,2372.1,2372.0,0.0397786]
[1726596819143,11.43134,2372.1,2372.0,0.0397786]
[1726596819471,6.38042479,2372.3,2372.0,0.0397786]
[1726596819472,6.60071,2372.3,2372.0,0.0397786]
[1726596819668,4.21567,2372.1,2372.0,0.0397786]
[1726596819818,4.21541,2372.3,2372.0,0.0397786]
[1726596820020,8.43084,2372.3,2372.0,0.0397786]
[1726596820231,4.21541,2372.3,2372.0,0.0397786]
[1726596820851,4.21541,2372.3,2372.1,2.2985]
[1726596820852,4.21535,2372.3,2372.1,2.2985]
[1726596821017,5.35839,2372.3,2372.0,0.0397786]
[1726596821222,8.43082,2372.3,2372.0,0.0397786]
[1726596821763,8.43016,2372.5,2372.0,0.0397786]
[1726596821932,4.21506,2372.5,2372.0,0.0397786]
[1726596822748,4.21542,2372.3,2372.0,0.0397786]
[1726596824125,4.21507,2372.5,2372.0,0.0397786]
[1726596824126,4.21517,2372.4,2372.0,0.0397786]
[1726596824619,4.21507,2372.5,2372.0,0.0397786]
[1726596824821,4.21488,2372.6,2372.1,2.2635]
[1726596825226,4.655195,2372.8,2372.3,2.2635]
[1726596825485,4.655195,2372.8,2372.3,3.31934119]
[1726596825486,8.42936,2372.7,2372.3,3.31934119]
[1726596825633,4.21501,2372.5,2372.3,2.2635]
[1726596825974,4.21507,2372.5,2372.3,2.2635]
[1726596826170,4.21507,2372.5,2372.1,2.4245]
[1726596826327,4.21507,2372.5,2372.1,3.09251186]
[1726596827171,4.21567,2372.1,2372.0,0.0397786]
[1726596830187,8.43134,2372.1,2372.0,0.0397786]
[1726596832073,12.42646479,2372.1,2372.0,0.0397786]
[1726596832273,18.89683479,2372.1,2372.0,0.0397786]
[1726596832477,20.78651827,2372.1,2372.0,0.0397786]
[1726596832853,28.00218827,2372.1,2372.0,0.0397786]
[1726596833054,28.99286133,2372.1,2372.0,0.0397786]
[1726596836649,30.30334638,2372.1,2372.0,0.0397786]
[1726596837297,28.99286133,2372.1,2372.0,0.0397786]
[1726596837798,24.22719133,2372.1,2372.0,0.0397786]
[1726596838093,24.66861921,2372.1,2372.0,0.0397786]
[1726596838989,29.43428921,2372.1,2372.0,0.0397786]
[1726596841711,30.74477426,2372.1,2372.0,0.0397786]
[1726596842219,29.43428921,2372.1,2372.0,0.0397786]
[1726596842363,34.96044426,2372.1,2372.0,0.0397786]
[1726596842563,34.96044426,2372.1,2371.3,0.0397786]
[1726596842564,21.96765479,2371.4,2371.3,0.0397786]
[1726596842778,22.51765479,2371.4,2371.3,0.0397786]
[1726596843174,26.73456479,2371.4,2371.3,0.0397786]
[1726596846414,17.97253,2371.4,2371.3,0.0397786]
[1726596846622,19.64585479,2371.4,2371.3,0.0397786]
[1726596846918,21.83620027,2371.4,2371.3,0.0397786]
[1726596847427,17.61929027,2371.4,2371.3,0.0397786]
[1726596847582,13.62416548,2371.4,2371.3,0.0397786]
[1726596848224,22.82738007,2371.4,2371.3,0.0397786]
[1726596848522,23.26808566,2371.4,2371.3,0.0397786]
[1726596850228,25.64458566,2371.4,2371.3,0.0397786]
[1726596850524,29.86149566,2371.4,2371.3,0.0397786]
[1726596850827,25.64458566,2371.4,2371.3,0.0397786]
[1726596852514,19.27296087,2371.4,2371.3,0.0397786]
[1726596852714,23.26808566,2371.4,2371.3,0.0397786]
[1726596856064,30.54357226,2371.4,2371.3,0.0397786]
[1726596856699,29.97289566,2371.4,2371.3,0.0397786]
[1726596856899,25.75598566,2371.4,2371.3,0.0397786]
[1726596857100,29.97289566,2371.4,2371.3,0.0397786]
[1726596857602,34.41589566,2371.4,2371.3,0.0397786]
[1726596857996,34.41589566,2371.4,2370.5,2.3695786]
[1726596857997,25.76029045,2371.4,2370.5,2.3695786]
[1726596858202,15.43180479,2370.6,2370.5,0.0397786]
[1726596858701,11.43668,2370.6,2370.5,0.0397786]
[1726596859539,11.43668,2370.6,2370.3,2.3298]
[1726596859540,4.21869,2370.4,2370.3,2.3839618]
[1726596860840,8.43738,2370.4,2370.3,2.3839618]
[1726596862510,4.21869,2370.4,2370.3,2.3839618]
[1726596863768,4.65949125,2370.4,2370.3,2.3839618]
[1726596865167,8.87818125,2370.4,2370.3,2.3839618]
[1726596866066,4.65949125,2370.4,2370.3,2.3839618]
[1726596866237,8.87818125,2370.4,2370.3,2.3839618]
[1726596866442,4.65949125,2370.4,2370.3,2.3839618]
[1726596867374,8.87818125,2370.4,2370.3,2.3839618]
[1726596867871,10.76786473,2370.4,2370.3,0.0541618]
[1726596870145,4.65949125,2370.4,2370.3,0.0541618]
[1726596870559,8.87818125,2370.4,2370.3,0.0541618]
[1726596870952,13.09687125,2370.4,2370.3,0.0541618]
[1726596871153,15.17620604,2370.4,2370.3,0.0541618]
[1726596871381,22.39489604,2370.4,2370.3,0.0541618]
[1726596871581,25.60623564,2370.4,2370.3,0.0541618]
[1726596871784,26.04775147,2370.4,2370.3,0.0541618]
[1726596874484,25.49775147,2370.4,2370.3,0.0541618]
[1726596874691,27.3582909,2370.4,2370.3,0.0541618]
[1726596874863,27.36142401,2370.4,2370.3,0.0541618]
[1726596875058,27.79684458,2370.4,2370.3,0.0541618]
[1726596875468,27.36179461,2370.4,2370.3,0.0541618]
[1726596875990,26.04775147,2370.4,2370.3,0.0541618]
[1726596876350,27.79684458,2370.4,2370.3,0.0541618]
[1726596877605,26.04775147,2370.4,2370.3,0.0541618]
[1726596877768,28.23732357,2370.4,2370.3,0.0541618]
[1726596878700,25.49775147,2370.4,2370.3,0.0541618]
[1726596878902,27.68732357,2370.4,2370.3,0.0541618]
[1726596879197,27.25102482,2370.4,2370.3,0.0541618]
[1726596879974,25.49775147,2370.4,2370.3,0.0541618]
[1726596880906,27.2510971,2370.4,2370.3,0.0541618]
[1726596881195,27.25110388,2370.4,2370.3,0.0541618]
[1726596881705,25.49775147,2370.4,2370.3,0.0541618]
[1726596881865,27.68939207,2370.4,2370.3,0.0541618]
[1726596882058,28.23939207,2370.4,2370.3,0.0541618]
[1726596882263,26.04775147,2370.4,2370.3,0.0541618]
[1726596883712,16.73448738,2370.4,2370.3,0.0541618]
[1726596883870,11.07314778,2370.4,2370.3,0.0541618]
[1726596884509,19.28696257,2370.4,2370.3,0.0541618]
[1726596884811,19.7260737,2370.4,2370.3,0.0541618]
[1726596885521,23.2760737,2370.4,2370.3,0.0541618]
[1726596885717,25.6814737,2370.4,2370.3,0.0541618]
[1726596885879,26.32016666,2370.4,2370.3,0.0541618]
[1726596887215,17.34390102,2370.4,2370.3,0.0541618]
[1726596887418,14.51264623,2370.4,2370.3,0.0541618]
[1726596888227,28.33107847,2370.4,2370.3,0.0541618]
[1726596888374,23.54171187,2370.4,2370.3,0.0541618]
[1726596888573,26.17278606,2370.4,2370.3,0.0541618]
[1726596888769,29.51888932,2370.4,2370.3,0.0541618]
[1726596888987,26.88781513,2370.4,2370.3,0.0541618]
[1726596889184,29.51888932,2370.4,2370.3,0.0541618]
[1726596889388,29.51888932,2370.4,2369.5,0.0399454]
[1726596889389,11.44024,2369.6,2369.5,0.0399454]
[1726596889626,21.96015455,2369.6,2369.5,0.0399454]
[1726596889829,20.39323595,2369.6,2369.5,0.0399454]
[1726596890036,19.40416604,2369.6,2369.5,0.0399454]
[1726596890186,20.28621063,2369.6,2369.5,0.0399454]
[1726596890385,20.28574795,2369.6,2369.5,0.0399454]
[1726596891624,18.07121399,2369.6,2369.5,0.0399454]
[1726596893228,12.3223693,2369.6,2369.5,0.0399454]
[1726596893752,9.41692715,2369.6,2369.5,2.4702454]
[1726596893952,3.8821293,2369.6,2369.5,2.4702454]
[1726596894124,0.8821293,2369.6,2369.5,2.4702454]
[1726596894329,0.44077894,2369.6,2369.5,2.71726994]
[1726596894530,0.44077894,2369.6,2369.5,2.4702454]
[1726596894836,4.66089894,2369.6,2369.5,2.4702454]
[1726596896197,0.44077894,2369.6,2369.5,2.4702454]
[1726596897120,4.66089894,2369.6,2369.5,2.4702454]
[1726596897499,8.88101894,2369.6,2369.5,2.4702454]
[1726596897799,12.05627751,2369.6,2369.5,0.0399454]
[1726596897999,10.63719535,2369.6,2369.5,0.0399454]
[1726596900272,10.19569679,2369.6,2369.5,0.0399454]
[1726596900576,21.8508463,2369.6,2369.5,0.0399454]
[1726596900729,12.32253079,2369.6,2369.5,0.0399454]
[1726596900930,14.51494144,2369.6,2369.5,0.0399454]
[1726596901264,13.63566437,2369.6,2369.5,2.3923454]
[1726596901572,17.63078916,2369.6,2369.5,0.0399454]
[1726596901785,13.63566437,2369.6,2369.5,0.0399454]
[1726596902127,6.41554437,2369.6,2369.5,0.0399454]
[1726596902327,5.97793439,2369.6,2369.5,0.0399454]
[1726596902601,10.19805439,2369.6,2369.5,2.4496454]
[1726596902730,12.05043869,2369.6,2369.5,0.0399454]
[1726596903068,19.48596138,2369.6,2369.5,0.0399454]
[1726596903931,19.92776048,2369.6,2369.5,0.0399454]
[1726596904933,19.48596138,2369.6,2369.5,0.0399454]
[1726596905131,17.29091805,2369.6,2369.5,0.0399454]
[1726596905480,15.05121068,2369.6,2369.5,0.0399454]
[1726596905637,13.63643636,2369.6,2369.5,0.0399454]
[1726596906579,18.07044535,2369.6,2369.5,0.0399454]
[1726596906730,18.07039818,2369.6,2369.5,0.0399454]
[1726596906934,14.07527339,2369.6,2369.5,0.0399454]
[1726596907367,14.07527339,2369.6,2369.5,2.5112454]
[1726596907368,2.63503339,2369.6,2369.5,2.5112454]
[1726596907577,2.63503339,2369.6,2369.5,6.98265994]
[1726596907578,0.44077894,2369.6,2369.5,6.98265994]
[1726596908075,0.44077894,2369.6,2369.5,11.20294994]
[1726596908787,0.44077894,2369.6,2369.5,2.76236994]
[1726596909140,0.44077894,2369.6,2369.5,6.98265994]
[1726596910235,0.44077894,2369.6,2369.5,11.20294994]
[1726596910978,1.31662261,2370.0,2369.5,19.41836473]
[1726596911136,7.42,2370.2,2370.1,6.57223]
[1726596911337,1.31662261,2370.3,2370.1,6.57222]
[1726596911574,1.31662261,2370.4,2370.1,6.57222]
[1726596911879,1.31662261,2370.4,2370.1,2.353]
[1726596912036,4.21905,2370.2,2370.1,2.353]
[1726596912384,4.21933,2370.1,2369.7,2.353]
[1726596912551,4.21933,2370.1,2369.8,2.4663]
[1726596912552,1.3179425,2370.1,2369.8,2.4663]
[1726596912875,1.3179425,2370.2,2370.0,2.4663]
[1726596913060,1.3179425,2370.2,2370.1,2.4663]
[1726596913372,1.3179425,2370.3,2370.1,7.354104]
[1726596913778,1.3179425,2370.2,2369.7,2.4663]
[1726596914072,5.5372725,2370.1,2369.7,2.4663]
[1726596914278,1.3179425,2370.0,2369.7,2.4663]
[1726596915447,1.3179425,2370.0,2369.8,2.4256]
[1726596915650,1.3179425,2370.1,2369.9,2.4256]
[1726596915974,1.3179425,2370.2,2369.9,2.4256]
[1726596916276,5.5370225,2370.2,2369.9,2.4256]
[1726596916463,1.3179425,2370.1,2369.9,2.4256]
[1726596916867,1.3179425,2370.1,2369.9,6.64508]
[1726596917197,1.3179425,2370.2,2370.1,2.4256]
[1726596918637,5.5369925,2370.2,2370.1,2.4256]
[1726596918837,1.75541047,2370.2,2369.7,6.64543]
[1726596919053,4.21949,2370.0,2369.7,2.4256]
[1726596919252,5.5370486,2370.0,2369.7,2.4256]
[1726596919467,5.5372486,2369.9,2369.7,2.4256]
[1726596920082,4.21976,2369.8,2369.7,2.4256]
[1726596920392,5.5373186,2369.8,2369.5,2.7655454]
[1726596920597,4.21969,2369.9,2369.5,2.7655454]
[1726596920598,5.5372486,2369.9,2369.5,3.46413594]
[1726596920807,1.3175586,2369.9,2369.8,2.4256]
[1726596921303,1.3175586,2370.0,2369.8,2.4276368]
[1726596921772,1.3175586,2370.1,2369.8,2.4276368]
[1726596922103,1.3175586,2370.0,2369.8,3.51439548]
[1726596923715,1.3175586,2370.1,2369.8,3.51439548]
[1726596924200,1.3175586,2370.1,2369.8,7.73414548]
[1726596924364,1.3175586,2370.2,2369.8,7.73414548]
[1726596924701,1.3175586,2370.2,2370.0,6.57833]
[1726596924909,1.3175586,2370.3,2370.1,1.07978]
[1726596925263,1.3175586,2370.3,2370.1,1.0818168]
[1726596925805,0.8175586,2370.3,2370.1,1.0818168]
[1726596926176,21.93147479,2370.2,2370.1,0.0020368]
[1726596926379,22.48147479,2370.2,2370.1,0.0020368]
[1726596926694,17.71242479,2370.2,2370.1,0.0020368]
[1726596926861,18.153325,2370.2,2370.1,0.0020368]
[1726596927058,2.63585972,2370.2,2370.1,0.0020368]
[1726596927319,2.19680477,2370.2,2370.1,0.0020368]
[1726596927496,0.44090021,2370.2,2370.1,0.0020368]
[1726596927678,0.44090021,2370.2,2370.1,0.45418048]
[1726596927873,0.44090021,2370.2,2370.1,2.81318048]
[1726596928091,0.44090021,2370.2,2370.1,2.3610368]
[1726596928092,4.65995021,2370.2,2370.1,2.3610368]
[1726596929089,4.65995021,2370.2,2370.1,0.0020368]
[1726596929478,0.44090021,2370.2,2370.1,0.0020368]
[1726596929877,0.44090021,2370.2,2370.1,2.3524368]
[1726596930325,4.65995021,2370.2,2370.1,2.3524368]
[1726596930607,4.65995021,2370.2,2370.1,0.0020368]
[1726596932267,8.87900021,2370.2,2370.1,0.0020368]
[1726596932476,4.65995021,2370.2,2370.1,0.0020368]
[1726596932775,0.44090021,2370.2,2370.1,0.0020368]
[1726596933986,0.44090021,2370.2,2370.1,2.3524368]
[1726596934200,4.65995021,2370.2,2370.1,2.3524368]
[1726596934979,8.87900021,2370.2,2370.1,0.0020368]
[1726596935173,10.19547757,2370.2,2370.1,0.0020368]
[1726596935375,8.87900021,2370.2,2370.1,0.0020368]
[1726596935672,14.63002956,2370.2,2370.1,0.0020368]
[1726596935867,16.98342043,2370.2,2370.1,0.0020368]
[1726596936106,12.98829564,2370.2,2370.1,0.0020368]
[1726596936315,26.99472504,2370.2,2370.1,0.0020368]
[1726596936519,22.997275,2370.2,2370.1,0.0020368]
[1726596937194,26.071665,2370.2,2370.1,0.0020368]
[1726596937376,23.43879399,2370.2,2370.1,0.0020368]
[1726596937574,30.29097954,2370.2,2370.1,0.0020368]
[1726596937829,29.40819578,2370.2,2370.1,0.0020368]
[1726596938204,26.77506023,2370.2,2370.1,0.0020368]
[1726596938710,22.00601023,2370.2,2370.1,0.0020368]
[1726596938911,18.66974399,2370.2,2370.1,0.0020368]
[1726596939223,18.228225,2370.2,2370.1,0.0020368]
[1726596940483,25.63031872,2370.2,2370.1,0.0020368]
[1726596940687,22.997275,2370.2,2370.1,0.0020368]
[1726596941111,25.63042525,2370.2,2370.1,0.0020368]
[1726596941314,28.92254321,2370.2,2370.1,0.0020368]
[1726596941628,26.28939296,2370.2,2370.1,0.0020368]
[1726596942073,26.7308931,2370.2,2370.1,0.0020368]
[1726596942712,22.5118431,2370.2,2370.1,0.0020368]
[1726596942919,14.95350213,2370.2,2370.1,0.0020368]
[1726596943228,2.63496983,2370.2,2370.1,0.0020368]
[1726596943381,2.63496983,2370.2,2370.1,2.4006368]
[1726596943572,3.95157034,2370.2,2370.1,2.4006368]
[1726596943772,1.75750072,2370.2,2370.1,6.6198668]
[1726596943972,0.44090021,2370.2,2370.1,11.56952143]
[1726596944888,1.31660051,2370.5,2370.3,4.21884]
[1726596945089,1.31660051,2370.4,2370.2,2.4523]
[1726596945306,1.31660051,2370.4,2370.2,2.4543368]
[1726596945496,5.53521051,2370.5,2370.2,2.4543368]
[1726596945799,5.53521051,2370.5,2370.2,3.19474994]
[1726596946029,1.31660051,2370.5,2370.2,3.19474994]
[1726596946316,1.31660051,2370.5,2370.2,2.4543368]
[1726596947317,1.31660051,2370.5,2370.4,2.3676]
[1726596947519,0.44102734,2370.6,2370.4,6.58619]
[1726596948385,0.44102734,2370.6,2370.5,10.82802]
[1726596948581,0.44102734,2370.6,2370.5,11.910822]
[1726596949591,0.44102734,2370.6,2370.5,7.692312]
[1726596951315,0.44102734,2370.6,2370.5,11.910822]
[1726596951688,0.44102734,2370.6,2370.5,16.129332]
[1726596952030,7.42,2371.2,2371.1,2.409]
[1726596952190,1.31660051,2371.2,2371.1,2.409]
[1726596952388,1.75763078,2371.3,2371.1,2.409]
[1726596953512,0.44103027,2371.3,2371.1,2.409]
[1726596953830,1.75763078,2371.3,2371.1,2.409]
[1726596954292,0.44103027,2371.3,2371.1,3.07167]
[1726596954496,5.97485078,2371.3,2371.1,2.409]
[1726596954695,5.97485078,2371.3,2370.9,2.409]
[1726596954929,0.44103027,2371.3,2371.0,4.21761]
[1726596955322,0.44103027,2371.3,2371.0,4.21756]
[1726596956000,0.44103027,2371.3,2371.1,4.21742]
[1726596956197,0.44103027,2371.3,2371.2,6.53477]
[1726596957858,0.44103027,2371.3,2371.2,2.3175]
[1726596960363,4.65822027,2371.3,2370.9,2.4075]
[1726596960564,4.65826027,2371.3,2370.9,2.4075]
[1726596960789,4.21763,2371.0,2370.6,6.62568]
[1726596961165,4.21763,2371.0,2370.6,6.6258]
[1726596961356,8.43479,2371.2,2370.7,4.21806]
[1726596961553,4.21746,2371.1,2370.7,4.21806]
[1726596961789,0.44103027,2371.3,2371.0,4.21758]
[1726596962106,0.44103027,2371.3,2370.9,2.4075]
[1726596962107,4.21756,2371.1,2370.9,2.4075]
[1726596962403,2.426,2371.2,2370.5,2.4075]
[1726596962568,4.21809,2370.8,2370.4,4.2186]
[1726596963094,4.21809,2370.8,2370.3,6.62634]
[1726596963278,4.21809,2370.8,2370.3,6.62629]
[1726596963480,4.21809,2370.8,2370.4,4.21869]
[1726596964214,4.21781,2370.9,2370.5,4.2185]
[1726596964357,4.21781,2370.9,2370.4,4.21867]
[1726596964853,6.5118,2370.8,2370.3,3.14338914]
[1726596965055,4.21827,2370.7,2370.3,2.4075]
[1726596965551,2.2938,2370.8,2370.4,4.21868]
[1726596965800,4.21778,2371.0,2370.5,4.21848]
[1726596965801,2.2938,2371.0,2370.5,4.21848]
[1726596965963,5.53416051,2371.1,2370.7,2.4277]
[1726596965964,4.21756,2371.1,2370.7,2.4277]
[1726596966169,4.21756,2371.1,2370.7,6.64576]
[1726596966695,8.43514,2371.1,2370.7,2.4277]
[1726596966906,4.21756,2371.1,2370.7,2.4277]
[1726596967054,4.21765,2371.0,2370.7,2.4277]
[1726596967257,4.21765,2371.0,2370.5,10.86463]
[1726596967567,4.65870093,2371.0,2370.5,11.951093]
[1726596968119,4.65870093,2371.0,2370.5,2.4277]
[1726596968255,4.21799,2370.8,2370.5,2.4277]
[1726596968450,2.4541,2370.8,2370.4,4.2186]
[1726596968694,6.6721,2370.8,2370.3,6.64654]
[1726596968898,6.6721,2370.8,2370.4,4.21868]
[1726596969062,6.6721,2370.8,2370.3,6.64654]
[1726596969252,6.6721,2370.8,2370.3,7.80626014]
[1726596969461,6.67209,2370.8,2370.3,7.80631014]
[1726596970168,4.21818,2370.7,2370.3,7.80631014]
[1726596970483,6.67209,2370.8,2370.4,4.21862]
[1726596970859,4.21799,2370.8,2370.4,5.42130869]
[1726596971401,4.21784,2370.9,2370.5,4.2184]
[1726596972606,4.65869093,2371.0,2370.7,2.4277]
[1726596972769,0.44105093,2371.0,2370.7,2.4277]
[1726596972969,0.44105093,2371.0,2370.7,10.8638]
[1726596973284,0.44105093,2371.0,2370.7,7.7321]
[1726596973603,0.44105093,2371.0,2370.8,4.21797]
[1726596973766,4.65879093,2371.0,2370.4,3.47428869]
[1726596973972,4.65879093,2371.0,2370.5,4.21836]
[1726596974171,4.65879093,2371.0,2370.4,3.47428869]
[1726596974172,0.44105093,2371.0,2370.7,4.21804]
[1726596974601,4.65875093,2371.0,2370.6,4.21829]
[1726596975496,2.4817,2370.8,2370.5,4.21842]
[1726596975692,4.2186,2370.5,2370.2,0.0020368]
[1726596975934,4.21887,2370.3,2370.2,0.0020368]
[1726596976286,4.21869,2370.4,2370.2,0.0020368]
[1726596976700,4.21887,2370.3,2370.2,0.0020368]
[1726596976911,4.21869,2370.4,2370.2,0.0020368]
[1726596977220,4.21887,2370.3,2370.2,0.0020368]
[1726596978993,8.43774,2370.3,2370.2,0.0020368]
[1726596979193,9.66746481,2370.3,2370.2,0.0020368]
[1726596979595,15.16006481,2370.3,2370.2,0.0020368]
[1726596979800,16.47666532,2370.3,2370.2,0.0020368]
[1726596980405,15.16006481,2370.3,2370.2,0.0020368]
[1726596981137,16.47666532,2370.3,2370.2,0.0020368]
[1726596981811,20.69553532,2370.3,2370.2,0.0020368]
[1726596982107,21.13436021,2370.3,2370.2,0.0020368]
[1726596982311,21.68436021,2370.3,2370.2,0.0020368]
[1726596982505,19.92893481,2370.3,2370.2,0.0020368]
[1726596982704,21.67937857,2370.3,2370.2,0.0020368]
[1726596982923,22.1204634,2370.3,2370.2,0.0020368]
[1726596983143,22.12049846,2370.3,2370.2,0.0020368]
[1726596983294,17.90162846,2370.3,2370.2,0.0020368]
[1726596983496,16.15114964,2370.3,2370.2,0.0020368]
[1726596983810,17.9017926,2370.3,2370.2,0.0020368]
[1726596984137,16.12206779,2370.3,2370.2,0.0020368]
[1726596984340,11.46555788,2370.3,2370.2,0.0020368]
[1726596984540,7.15255483,2370.3,2370.2,0.0020368]
[1726596984740,0.44108483,2370.3,2370.2,0.0020368]
[1726596984917,4.65995483,2370.3,2370.2,0.0020368]
[1726596985241,0.44108483,2370.3,2370.2,0.0020368]
[1726596985614,0.44108483,2370.3,2370.2,4.2210868]
[1726596985933,0.44108483,2370.3,2370.2,0.42414548]
[1726596986635,0.44108483,2370.3,2370.2,4.64319548]
[1726596988764,0.44108483,2370.3,2370.2,7.13389548]
[1726596989256,1.31300305,2370.8,2370.4,4.21859]
[1726596989457,1.31300305,2370.8,2370.5,0.843733]
[1726596989458,0.44106011,2370.6,2370.5,0.843733]
[1726596990135,0.44106011,2370.6,2370.2,11.35284548]
[1726596990329,0.44106011,2370.6,2370.2,7.13380548]
[1726596990763,4.21859,2370.5,2370.2,0.42414548]
[1726596991432,5.53159305,2370.5,2370.2,0.42414548]
[1726596992044,1.31300305,2370.5,2370.2,0.42414548]
[1726596992250,4.21854,2370.5,2370.2,0.42414548]
[1726596992446,1.31300305,2370.5,2370.2,0.42414548]
[1726596992743,1.75406316,2370.6,2370.3,0.88624955]
[1726596992961,0.44106011,2370.6,2370.5,2.4907]
[1726596993836,0.44106011,2370.6,2370.3,2.4288]
[1726596994307,0.44106011,2370.6,2370.3,6.64767]
[1726596994510,0.44106011,2370.6,2370.3,7.35475155]
[1726596994906,0.44106011,2370.6,2370.3,7.35479155]
[1726596995112,0.44106011,2370.6,2370.5,4.21851]
[1726596995499,0.44106011,2370.6,2370.4,4.21869]
[1726596995691,0.44106011,2370.6,2370.4,5.4184577]
[1726596996400,4.65948011,2370.6,2370.3,2.4288]
[1726596996582,2.89476011,2370.6,2370.2,0.0020368]
[1726596996782,4.21856,2370.5,2370.2,0.0020368]
[1726596997208,4.21879,2370.4,2370.2,0.0020368]
[1726596997416,8.43774,2370.3,2370.2,0.0020368]
[1726596997833,8.78508992,2370.3,2370.2,0.0020368]
[1726596998406,12.98943288,2370.3,2370.2,0.0020368]
[1726596998609,11.86715433,2370.3,2370.2,0.0020368]
[1726596998814,8.96354767,2370.3,2370.2,0.0020368]
[1726596999010,13.18270412,2370.3,2370.2,0.0020368]
[1726596999203,15.41463923,2370.3,2370.2,0.0020368]
[1726596999741,16.00346695,2370.3,2370.2,0.0020368]
[1726597000243,13.77159198,2370.3,2370.2,0.0020368]
[1726597000545,11.31779377,2370.3,2370.2,0.0020368]
[1726597000726,10.00228205,2370.3,2370.2,0.0020368]
[1726597000932,11.75292501,2370.3,2370.2,0.0020368]
[1726597001329,11.77345214,2370.3,2370.2,0.0020368]
[1726597001534,11.14508773,2370.3,2370.2,0.0020368]
[1726597002751,10.70990154,2370.3,2370.2,0.0020368]
[1726597003334,6.49123504,2370.3,2370.2,0.0020368]
[1726597003646,6.49141806,2370.3,2370.2,0.0020368]
[1726597003942,6.92621773,2370.3,2370.2,0.0020368]
[1726597004347,5.96951296,2370.3,2370.2,0.0020368]
[1726597004537,6.92609774,2370.3,2370.2,0.0020368]
[1726597004740,7.36720739,2370.3,2370.2,0.0020368]
[1726597006052,7.78698635,2370.3,2370.2,0.0020368]
[1726597006629,7.36720739,2370.3,2370.2,0.0020368]